bitfinex-derivatives/quotes_SOLF0:USTF0_20250518
["timestamp","ask_amount","ask_price","bid_price","bid_amount"]
[1747569665932,5.8552,170.74,170.7,5.856]
[1747569666136,57.62,170.76,170.68,5.47258677]
[1747569666330,63.4743,170.76,170.68,5.47258677]
[1747569666636,57.62,170.76,170.68,5.47258677]
[1747569666933,5.8545,170.75,170.68,5.47258677]
[1747569667434,5.8545,170.75,170.72,5.8556]
[1747569668539,57.62,170.76,170.73,5.855]
[1747569668728,115.26,170.79,170.66,115.24]
[1747569669129,115.26,170.79,170.73,5.855]
[1747569669324,115.26,170.79,170.7,57.64]
[1747569669532,5.8541,170.77,170.73,5.855]
[1747569670639,5.8541,170.77,170.74,5.8549]
[1747569671236,5.8542,170.76,170.73,5.8551]
[1747569671739,5.8539,170.77,170.74,5.8549]
[1747569672037,5.8539,170.77,170.7,57.64]
[1747569672224,5.8539,170.77,170.75,5.8545]
[1747569672429,5.8536,170.78,170.75,5.8545]
[1747569672626,5.8536,170.78,170.7,115.3]
[1747569672830,1.9136,170.82,170.7,115.3]
[1747569673135,115.3,170.81,170.71,5.838]
[1747569673536,5.8532,170.79,170.76,5.854]
[1747569673838,115.3,170.81,170.72,115.3]
[1747569674035,115.3,170.81,170.74,5.8546]
[1747569675334,115.3,170.81,170.75,5.8545]
[1747569676041,5.8537,170.78,170.75,5.8545]
[1747569676342,115.3,170.81,170.74,5.8548]
[1747569676542,5.8537,170.78,170.72,115.3]
[1747569676941,115.3,170.81,170.72,115.3]
[1747569677745,5.8541,170.77,170.72,115.3]
[1747569678346,5.8542,170.76,170.72,115.3]
[1747569678545,115.3,170.81,170.72,115.3]
[1747569678746,115.3,170.81,170.72,57.64]
[1747569679146,5.8537,170.78,170.75,5.8543]
[1747569680051,5.8539,170.77,170.74,5.8547]
[1747569680855,5.8536,170.78,170.72,57.64]
[1747569681152,57.98,170.8,170.72,57.64]
[1747569681353,57.98,170.8,170.74,5.8547]
[1747569681354,5.8541,170.77,170.74,5.8547]
[1747569681754,57.98,170.8,170.72,57.64]
[1747569682057,5.8544,170.76,170.73,5.8552]
[1747569682852,57.98,170.8,170.72,63.4953]
[1747569683255,57.98,170.8,170.72,5.8553]
[1747569684155,5.8548,170.75,170.72,5.8553]
[1747569684353,57.98,170.8,170.66,5.47258677]
[1747569684354,57.64,170.77,170.68,57.64]
[1747569684753,57.98,170.76,170.68,57.64]
[1747569684954,57.98,170.76,170.69,5.8564]
[1747569685456,5.8558,170.72,170.69,5.8564]
[1747569685957,5.8554,170.73,170.7,5.8561]
[1747569686147,57.98,170.76,170.68,57.64]
[1747569686348,57.64,170.77,170.68,57.64]
[1747569686553,58.18,170.79,170.73,5.855]
[1747569686754,5.41433091,170.82,170.72,58.06]
[1747569686961,121.71433091,170.82,170.76,5.8542]
[1747569687257,121.71433091,170.82,170.73,59.9366]
[1747569687648,63.47433091,170.82,170.76,5.854]
[1747569687851,116.3,170.82,170.73,63.6482]
[1747569688358,116.3,170.82,170.78,5.8532]
[1747569688658,116.3,170.82,170.73,63.6482]
[1747569688861,5.8527,170.81,170.77,5.8537]
[1747569690362,5.8529,170.8,170.76,5.8541]
[1747569692267,116.3,170.82,170.75,5.8545]
[1747569692963,5.8534,170.79,170.75,5.8545]
[1747569693762,5.8537,170.78,170.75,5.8545]
[1747569693966,116.3,170.82,170.74,5.8547]
[1747569694561,116.3,170.82,170.73,69.5033]
[1747569694772,5.8539,170.77,170.73,58.06]
[1747569695569,5.8539,170.77,170.74,5.8546]
[1747569696969,58.32,170.78,170.7,60.0287]
[1747569697171,116.38,170.78,170.7,60.0287]
[1747569697975,5.8548,170.75,170.71,5.8556]
[1747569698574,5.8549,170.74,170.71,5.8556]
[1747569700090,5.8547,170.75,170.72,5.8555]
[1747569700271,5.8547,170.75,170.7,60.0287]
[1747569700478,116.38,170.78,170.7,60.0287]
[1747569700879,5.8545,170.76,170.72,5.8554]
[1747569701176,116.38,170.78,170.72,5.8554]
[1747569704277,5.8545,170.76,170.72,5.8554]
[1747569705083,5.8545,170.76,170.73,5.8551]
[1747569705381,5.8545,170.76,170.7,60.0287]
[1747569705382,5.8539,170.77,170.7,60.0287]
[1747569706479,5.8543,170.76,170.7,60.0287]
[1747569706779,58.06,170.78,170.7,60.0287]
[1747569706981,5.854,170.77,170.74,5.8547]
[1747569707776,63.9136,170.78,170.75,5.8544]
[1747569708569,58.06,170.78,170.75,5.8544]
[1747569708981,58.06,170.78,170.76,5.8541]
[1747569709284,5.8533,170.79,170.76,5.8541]
[1747569709882,5.8535,170.78,170.75,5.8544]
[1747569710082,63.59433091,170.8,170.7,65.50128677]
[1747569710484,5.8534,170.79,170.76,5.8542]
[1747569710679,5.41433091,170.8,170.7,65.50128677]
[1747569710885,5.41433091,170.81,170.71,5.47258677]
[1747569711076,5.41433091,170.81,170.72,58.2]
[1747569711383,11.26703091,170.81,170.78,5.8533]
[1747569713382,11.26703091,170.81,170.74,58.06]
[1747569713578,11.26703091,170.81,170.77,5.8537]
[1747569715082,11.26703091,170.81,170.78,5.8533]
[1747569715286,5.8529,170.8,170.74,58.06]
[1747569715486,5.8529,170.8,170.77,5.8537]
[1747569715681,58.06,170.82,170.74,63.53258677]
[1747569715987,5.8528,170.81,170.74,63.53258677]
[1747569716282,5.8528,170.81,170.77,5.8536]
[1747569716881,5.8528,170.8,170.77,5.8536]
[1747569718490,5.8526,170.81,170.77,5.8536]
[1747569719387,5.8529,170.8,170.77,5.8536]
[1747569719782,58.06,170.82,170.78,5.8535]
[1747569720080,5.8528,170.81,170.74,58.06]
[1747569720281,5.8528,170.81,170.78,5.8534]
[1747569720476,58.06,170.82,170.74,58.06]
[1747569720787,5.8519,170.83,170.74,60.0243]
[1747569721383,5.8519,170.83,170.8,5.8528]
[1747569721588,5.8522,170.82,170.76,58.42]
[1747569721991,5.8522,170.82,170.79,5.853]
[1747569723095,5.8519,170.83,170.8,5.8527]
[1747569723485,5.8522,170.82,170.79,5.853]
[1747569725088,116.56,170.85,170.75,58.44]
[1747569725693,5.8527,170.81,170.78,5.8535]
[1747569725986,116.56,170.85,170.78,5.8535]
[1747569726191,5.8527,170.81,170.78,5.8535]
[1747569728095,5.8522,170.82,170.79,5.8531]
[1747569728493,5.8522,170.82,170.75,58.44]
[1747569728689,5.8522,170.82,170.75,60.3729]
[1747569729394,5.8522,170.82,170.78,5.8532]
[1747569729588,5.8526,170.81,170.78,5.8532]
[1747569729790,121.97433091,170.85,170.75,60.3729]
[1747569730096,5.8527,170.81,170.75,60.3729]
[1747569732295,5.8529,170.8,170.75,60.3729]
[1747569732497,116.56,170.85,170.75,5.8545]
[1747569732697,118.4539,170.84,170.75,5.8545]
[1747569732996,5.8539,170.77,170.73,5.47258677]
[1747569733193,5.8539,170.77,170.74,5.8546]
[1747569733695,5.8542,170.76,170.73,5.47258677]
[1747569733999,116.6,170.8,170.73,5.47258677]
[1747569735098,5.8546,170.75,170.73,5.47258677]
[1747569736094,5.8546,170.75,170.72,5.8553]
[1747569736600,5.8543,170.76,170.73,5.8552]
[1747569736798,5.8543,170.76,170.69,58.14]
[1747569736999,122.01433091,170.8,170.69,58.14]
[1747569737204,5.8537,170.78,170.74,5.8546]
[1747569738397,5.8537,170.78,170.7,1.9194]
[1747569738398,5.8537,170.78,170.75,5.8545]
[1747569739499,5.8539,170.77,170.74,5.8548]
[1747569739798,63.83433091,170.8,170.71,1.9967]
[1747569740005,5.8537,170.78,170.71,7.46928677]
[1747569740300,58.42,170.8,170.72,58.42]
[1747569740500,5.8535,170.79,170.72,58.42]
[1747569740702,5.8535,170.79,170.73,58.14]
[1747569741504,5.8535,170.79,170.75,5.8543]
[1747569741702,5.8536,170.78,170.75,5.8543]
[1747569741903,58.42,170.8,170.74,5.8547]
[1747569742998,58.42,170.8,170.71,7.46928677]
[1747569743207,58.42,170.8,170.71,60.1367]
[1747569743404,5.8549,170.74,170.71,58.14]
[1747569743703,58.42,170.8,170.71,58.14]
[1747569743901,58.14,170.77,170.7,5.47258677]
[1747569744203,58.38,170.76,170.7,5.47258677]
[1747569744608,5.8555,170.73,170.7,5.47258677]
[1747569745003,5.8555,170.73,170.7,11.32868677]
[1747569745701,58.38,170.76,170.68,60.0398]
[1747569746200,5.8548,170.75,170.71,5.8557]
[1747569746406,58.38,170.76,170.71,5.8557]
[1747569747507,5.8549,170.74,170.71,5.8557]
[1747569749511,5.8553,170.73,170.7,5.8561]
[1747569750110,58.38,170.76,170.69,5.8565]
[1747569750805,58.38,170.76,170.7,5.8562]
[1747569751005,58.14,170.77,170.68,60.0398]
[1747569751209,5.8544,170.76,170.68,60.0398]
[1747569751409,58.28,170.78,170.73,5.855]
[1747569751714,58.28,170.78,170.68,60.0398]
[1747569752115,5.8541,170.77,170.68,60.0398]
[1747569753715,58.28,170.78,170.68,60.0398]
[1747569754618,58.34,170.8,170.69,5.47258677]
[1747569754916,5.8532,170.79,170.75,5.8543]
[1747569755112,58.34,170.8,170.72,116.64]
[1747569755413,5.8537,170.78,170.74,5.8546]
[1747569755915,5.8537,170.78,170.75,5.8545]
[1747569756517,5.8539,170.77,170.73,5.8551]
[1747569757213,5.8543,170.76,170.73,5.8551]
[1747569757418,116.64,170.8,170.72,122.4955]
[1747569757619,116.64,170.8,170.72,58.34]
[1747569757920,5.8547,170.75,170.72,58.34]
[1747569758115,5.8547,170.75,170.71,5.8557]
[1747569758520,5.855,170.74,170.71,5.8557]
[1747569759132,5.855,170.74,170.7,7.7681]
[1747569759326,5.8553,170.73,170.7,7.7681]
[1747569759524,5.8553,170.73,170.7,5.856]
[1747569760629,5.855,170.74,170.71,5.8559]
[1747569761631,5.8547,170.75,170.71,5.8559]
[1747569761830,58.3,170.76,170.71,5.8559]
[1747569762328,58.3,170.76,170.7,5.8562]
[1747569763032,5.8553,170.73,170.7,5.8562]
[1747569763629,5.855,170.74,170.7,5.8562]
[1747569764132,58.3,170.76,170.7,5.8562]
[1747569764832,5.8552,170.74,170.7,5.8562]
[1747569765033,58.3,170.76,170.7,5.8562]
[1747569765233,5.8553,170.73,170.7,5.8562]
[1747569770138,5.8556,170.72,170.69,5.8565]
[1747569773031,116.66,170.76,170.67,5.47258677]
[1747569773437,5.8561,170.71,170.67,11.32968677]
[1747569773941,5.8564,170.7,170.67,11.32988677]
[1747569775137,5.856,170.71,170.68,5.8569]
[1747569775440,5.856,170.71,170.67,5.47258677]
[1747569775834,5.856,170.71,170.66,58.36]
[1747569776338,5.856,170.71,170.68,5.8569]
[1747569777148,5.856,170.71,170.69,5.8566]
[1747569777440,64.0157,170.72,170.69,5.8566]
[1747569777639,58.16,170.72,170.7,5.8562]
[1747569777833,58.16,170.72,170.66,58.36]
[1747569778035,5.8554,170.73,170.66,58.36]
[1747569779041,5.8554,170.73,170.7,5.856]
[1747569779229,63.955,170.74,170.7,5.856]
[1747569779434,58.1,170.74,170.66,58.36]
[1747569780145,58.1,170.74,170.71,5.8557]
[1747569780341,63.53433091,170.75,170.66,58.36]
[1747569780542,63.53433091,170.75,170.73,5.8552]
[1747569780844,5.41433091,170.75,170.73,5.8552]
[1747569781033,5.41433091,170.75,170.68,1.8267]
[1747569781235,5.41433091,170.75,170.69,58.12]
[1747569782245,5.8541,170.77,170.69,58.12]
[1747569782634,122.1136,170.78,170.69,58.12]
[1747569783343,5.8539,170.77,170.74,5.8548]
[1747569784043,122.1137,170.78,170.74,5.8548]
[1747569784238,116.26,170.78,170.74,5.8548]
[1747569784637,122.1137,170.78,170.74,5.8548]
[1747569784842,122.1137,170.78,170.69,116.22]
[1747569785344,5.8539,170.77,170.74,5.8546]
[1747569785543,58.12,170.78,170.74,5.8546]
[1747569786144,58.12,170.78,170.73,5.8551]
[1747569786944,5.8542,170.76,170.73,5.8551]
[1747569787145,58.12,170.78,170.73,5.8551]
[1747569787744,5.8543,170.76,170.73,5.8551]
[1747569788047,58.12,170.78,170.73,5.8551]
[1747569788547,58.12,170.78,170.69,58.12]
[1747569788749,1.9692,170.77,170.67,5.47258677]
[1747569789344,5.8556,170.72,170.69,5.8565]
[1747569791244,5.856,170.71,170.68,5.8568]
[1747569792248,58.08,170.73,170.68,5.8568]
[1747569792641,5.8565,170.7,170.67,5.8572]
[1747569793146,5.8565,170.7,170.66,58.12]
[1747569794046,5.8565,170.7,170.67,5.8572]
[1747569794445,5.8567,170.69,170.66,58.12]
[1747569794746,5.8567,170.69,170.66,5.8574]
[1747569795249,58.08,170.73,170.63,7.35378677]
[1747569795447,58.08,170.73,170.63,1.8812]
[1747569795849,5.857,170.68,170.65,5.8578]
[1747569796048,58.08,170.73,170.63,1.8812]
[1747569796542,5.8574,170.67,170.63,1.8812]
[1747569797351,58.16,170.69,170.62,58.12]
[1747569797860,5.8574,170.67,170.65,5.8579]
[1747569798197,58.16,170.69,170.65,5.8579]
[1747569798849,5.8571,170.68,170.65,5.8579]
[1747569799655,58.16,170.69,170.62,58.12]
[1747569800052,5.41433091,170.73,170.62,58.12]
[1747569800243,5.856,170.71,170.68,5.8567]
[1747569800953,122.0957,170.72,170.68,5.8567]
[1747569801150,116.24,170.72,170.62,58.12]
[1747569801549,5.8561,170.71,170.67,5.857]
[1747569801745,5.8561,170.71,170.62,58.12]
[1747569803247,116.24,170.72,170.62,58.12]
[1747569803846,5.8563,170.7,170.62,58.12]
[1747569804545,5.8566,170.69,170.66,5.8574]
[1747569805755,5.856,170.71,170.62,58.12]
[1747569806251,5.8563,170.7,170.67,5.8572]
[1747569808756,5.8566,170.69,170.66,5.8575]
[1747569809450,5.857,170.68,170.65,5.8579]
[1747569810554,5.8567,170.69,170.66,5.8576]
[1747569811755,58.02,170.7,170.62,58.12]
[1747569812255,58.02,170.7,170.67,5.8571]
[1747569812854,63.8763,170.7,170.67,5.8571]
[1747569813152,5.41433091,170.75,170.67,5.8571]
[1747569813452,5.8561,170.71,170.67,5.8571]
[1747569813653,64.9761,170.71,170.67,5.8571]
[1747569814652,64.9761,170.71,170.68,5.8569]
[1747569815157,5.8563,170.7,170.67,5.8572]
[1747569815349,59.12,170.71,170.67,5.8572]
[1747569815655,64.9762,170.71,170.67,5.8572]
[1747569815856,64.9762,170.71,170.68,5.8569]
[1747569816857,59.12,170.71,170.68,5.8569]
[1747569817659,64.976,170.71,170.68,5.8569]
[1747569817858,64.976,170.71,170.62,58.12]
[1747569818864,64.976,170.71,170.67,5.857]
[1747569819260,5.8564,170.7,170.67,5.857]
[1747569820661,5.856,170.71,170.67,5.857]
[1747569820964,5.41433091,170.75,170.62,58.12]
[1747569821161,117.18,170.74,170.62,58.12]
[1747569821349,5.8557,170.72,170.68,5.8567]
[1747569821549,65.0157,170.72,170.62,58.12]
[1747569821861,5.8557,170.72,170.62,58.12]
[1747569822560,5.8559,170.71,170.62,58.12]
[1747569823659,5.8559,170.71,170.68,5.8568]
[1747569824463,5.8557,170.72,170.69,5.8565]
[1747569825368,5.8557,170.72,170.68,5.8568]
[1747569825863,5.8557,170.72,170.69,5.8564]
[1747569826263,5.856,170.71,170.62,63.59258677]
[1747569826454,59.14,170.73,170.62,63.59258677]
[1747569827065,5.8557,170.72,170.68,5.8566]
[1747569827362,5.8557,170.72,170.62,63.59258677]
[1747569827560,63.8749,170.74,170.71,5.8558]
[1747569827760,5.8549,170.74,170.71,5.8558]
[1747569827966,5.41433091,170.75,170.66,58.02]
[1747569828170,64.41433091,170.75,170.72,5.8553]
[1747569829366,70.26893091,170.75,170.72,5.8553]
[1747569832063,64.8546,170.75,170.72,5.8553]
[1747569832669,59.0,170.75,170.72,5.8553]
[1747569834468,64.8546,170.75,170.72,5.8553]
[1747569836473,59.0,170.75,170.73,5.8551]
[1747569836973,59.0,170.75,170.72,5.8555]
[1747569837269,5.8546,170.75,170.72,5.8555]
[1747569840270,5.8544,170.76,170.72,5.8555]
[1747569840474,5.8544,170.76,170.73,5.8551]
[1747569840868,122.7739,170.77,170.74,5.8546]
[1747569841073,58.92,170.77,170.7,58.92]
[1747569841373,64.33433091,170.78,170.7,58.92]
[1747569841568,5.41433091,170.78,170.76,5.8542]
[1747569841969,5.41433091,170.78,170.7,58.92]
[1747569842172,11.26793091,170.78,170.75,5.8544]
[1747569843167,5.41433091,170.78,170.67,5.6125]
[1747569843371,58.9,170.79,170.68,117.8]
[1747569843774,5.8548,170.75,170.72,5.8555]
[1747569844871,5.8543,170.76,170.73,5.8552]
[1747569846577,5.8546,170.75,170.72,5.8554]
[1747569846990,117.84,170.77,170.68,58.9]
[1747569847272,5.8543,170.76,170.68,58.9]
[1747569847767,5.8543,170.76,170.72,5.8553]
[1747569847972,5.8543,170.76,170.68,58.9]
[1747569849078,5.8543,170.76,170.72,5.8552]
[1747569850381,5.8543,170.76,170.73,5.8552]
[1747569853479,5.8546,170.75,170.68,58.9]
[1747569853683,5.8546,170.75,170.72,5.8555]
[1747569853882,117.84,170.77,170.68,58.9]
[1747569854088,5.41433091,170.8,170.73,5.855]
[1747569854385,118.02,170.79,170.68,58.9]
[1747569855380,5.854,170.77,170.74,5.8549]
[1747569858287,5.8542,170.76,170.73,5.8551]
[1747569858982,5.8542,170.76,170.74,5.8549]
[1747569859187,59.18,170.78,170.74,5.8549]
[1747569860191,5.8541,170.77,170.74,5.8549]
[1747569860890,5.8541,170.77,170.75,5.8545]
[1747569861189,5.8541,170.77,170.68,58.9]
[1747569861391,5.8541,170.77,170.74,5.8547]
[1747569862089,5.8542,170.76,170.73,5.8552]
[1747569862990,5.8546,170.75,170.68,118.1]
[1747569863192,59.18,170.78,170.68,58.9]
[1747569864291,5.8551,170.74,170.71,5.8557]
[1747569864593,59.18,170.78,170.68,58.9]
[1747569864896,59.18,170.78,170.71,5.8559]
[1747569865196,59.18,170.78,170.68,58.9]
[1747569865393,5.8548,170.75,170.72,5.8553]
[1747569866193,5.855,170.74,170.71,5.8559]
[1747569867599,5.8546,170.75,170.72,5.8555]
[1747569867890,64.71433091,170.78,170.68,58.9]
[1747569868498,5.41433091,170.78,170.68,58.9]
[1747569869291,5.41433091,170.78,170.69,11.7131]
[1747569870104,5.41433091,170.78,170.77,5.8539]
[1747569870394,258.32722893,170.84,170.75,59.3]
[1747569870897,5.8524,170.82,170.78,5.8533]
[1747569871090,5.8524,170.82,170.75,61.2589]
[1747569871397,198.90722893,170.84,170.75,61.2589]
[1747569871597,140.00722893,170.84,170.75,61.2589]
[1747569872095,145.85892893,170.84,170.8,5.8527]
[1747569872997,5.8518,170.83,170.79,5.8531]
[1747569873192,5.8518,170.83,170.75,61.2589]
[1747569873497,5.8522,170.82,170.78,5.8533]
[1747569873998,5.8525,170.81,170.78,5.8533]
[1747569874200,134.59289802,170.84,170.76,5.47258677]
[1747569875598,5.8527,170.81,170.77,5.8536]
[1747569875895,5.8527,170.81,170.76,5.47258677]
[1747569876095,5.8523,170.82,170.78,5.8533]
[1747569877199,5.8523,170.82,170.79,5.8532]
[1747569878601,5.8523,170.82,170.78,5.8534]
[1747569882196,5.8525,170.81,170.75,61.2589]
[1747569882496,5.8525,170.81,170.78,5.8533]
[1747569886404,59.16,170.83,170.71,5.47258677]
[1747569886704,59.16,170.83,170.73,59.28]
[1747569887607,5.8534,170.79,170.76,5.854]
[1747569887802,5.8534,170.79,170.73,59.28]
[1747569888707,5.8534,170.79,170.76,5.8539]
[1747569888907,5.8529,170.8,170.73,59.28]
[1747569891005,5.8529,170.8,170.76,5.8539]
[1747569891408,5.8533,170.79,170.76,5.8539]
[1747569892704,5.853,170.8,170.76,5.8539]
[1747569893011,59.16,170.83,170.77,5.8538]
[1747569893310,59.16,170.83,170.73,59.28]
[1747569893608,5.8527,170.81,170.73,59.28]
[1747569894006,5.8527,170.81,170.77,5.8536]
[1747569895205,5.8527,170.81,170.78,5.8534]
[1747569895410,59.16,170.83,170.73,59.28]
[1747569896112,59.16,170.83,170.76,5.854]
[1747569896304,59.16,170.83,170.73,59.28]
[1747569896713,5.8534,170.79,170.75,5.8542]
[1747569897020,5.8534,170.79,170.73,59.28]
[1747569897313,5.8539,170.77,170.74,5.8548]
[1747569897909,5.8542,170.76,170.73,65.1351]
[1747569898210,5.8542,170.76,170.73,5.8551]
[1747569899211,5.8546,170.75,170.72,5.8555]
[1747569901603,59.24,170.79,170.7,65.0767]
[1747569902713,5.41433091,170.8,170.7,65.0767]
[1747569903117,5.41433091,170.8,170.78,5.8534]
[1747569903316,5.41433091,170.8,170.74,118.72]
[1747569904320,5.8527,170.81,170.74,118.72]
[1747569904623,5.8527,170.81,170.74,59.28]
[1747569904918,5.8527,170.81,170.77,5.8536]
[1747569905420,5.8527,170.81,170.74,59.28]
[1747569906517,5.8529,170.8,170.74,59.28]
[1747569906711,124.29433091,170.83,170.74,59.28]
[1747569907319,124.29433091,170.83,170.75,5.8544]
[1747569907709,5.8535,170.79,170.75,5.8544]
[1747569908116,5.8535,170.79,170.76,5.8542]
[1747569910520,5.8536,170.78,170.74,65.1346]
[1747569911321,5.8536,170.78,170.75,5.8545]
[1747569912519,5.8536,170.78,170.76,5.8542]
[1747569912715,5.8533,170.79,170.76,5.8542]
[1747569913817,5.8529,170.8,170.77,5.8538]
[1747569914417,5.8529,170.8,170.76,5.8541]
[1747569914722,5.8532,170.79,170.76,5.8541]
[1747569915023,5.8532,170.79,170.75,5.8544]
[1747569915212,5.8532,170.79,170.74,59.28]
[1747569916127,5.41433091,170.82,170.74,59.28]
[1747569916328,64.89433091,170.82,170.74,59.28]
[1747569917030,5.8527,170.81,170.77,5.8536]
[1747569917529,5.8527,170.81,170.76,5.854]
[1747569918029,5.8529,170.8,170.76,5.854]
[1747569918531,64.89433091,170.82,170.77,5.8538]
[1747569918730,5.8527,170.81,170.77,5.8538]
[1747569919033,64.89433091,170.82,170.77,5.8538]
[1747569919336,5.8529,170.8,170.76,5.8541]
[1747569919629,5.8529,170.8,170.74,59.28]
[1747569920433,5.8529,170.8,170.76,5.8539]
[1747569923934,5.8526,170.81,170.77,5.8538]
[1747569924739,5.8529,170.8,170.77,5.8538]
[1747569924934,59.48,170.82,170.77,5.8538]
[1747569925239,59.48,170.82,170.78,5.8535]
[1747569925943,5.8523,170.82,170.78,5.8535]
[1747569926145,64.69433091,170.83,170.74,59.28]
[1747569926442,11.26623091,170.83,170.74,59.28]
[1747569926638,11.26623091,170.83,170.79,5.8528]
[1747569927248,5.8519,170.83,170.79,5.8528]
[1747569927451,5.8519,170.83,170.8,5.8528]
[1747569929754,11.26593091,170.84,170.8,5.8528]
[1747569930154,5.41433091,170.84,170.79,5.853]
[1747569930349,5.8519,170.83,170.79,5.853]
[1747569932352,5.8516,170.84,170.8,5.8528]
[1747569932555,65.03433091,170.85,170.8,5.8528]
[1747569932854,65.03433091,170.85,170.74,5.47258677]
[1747569933054,82.60433091,170.85,170.72,7.29678236]
[1747569933248,82.60433091,170.85,170.72,3.41338236]
[1747569933452,5.8552,170.73,170.72,3.41338236]
[1747569933752,119.0,170.73,170.7,10.94517354]
[1747569933960,5.8559,170.71,170.7,10.94517354]
[1747569934156,119.0,170.73,170.65,5.8579]
[1747569934958,5.8569,170.69,170.65,5.8579]
[1747569937154,5.8569,170.68,170.64,5.8582]
[1747569937850,5.8568,170.69,170.64,5.8582]
[1747569941057,5.857,170.68,170.64,5.8582]
[1747569945456,118.92,170.7,170.58,59.54]
[1747569945663,118.92,170.7,170.55,118.92]
[1747569945962,5.8582,170.65,170.6,5.8594]
[1747569947165,118.92,170.66,170.59,5.8599]
[1747569947565,118.92,170.66,170.57,59.36]
[1747569947756,118.92,170.66,170.58,5.8602]
[1747569948965,5.8593,170.62,170.58,5.8602]
[1747569949358,118.92,170.66,170.57,5.8607]
[1747569949559,5.8592,170.62,170.57,5.8607]
[1747569950168,118.86,170.62,170.56,5.861]
[1747569950660,5.8599,170.6,170.56,5.861]
[1747569951275,118.86,170.62,170.55,59.54]
[1747569952167,5.8595,170.61,170.57,5.8604]
[1747569952362,118.86,170.62,170.55,59.54]
[1747569953171,5.8599,170.6,170.56,5.8608]
[1747569953364,118.86,170.62,170.55,59.54]
[1747569953866,5.8596,170.61,170.57,5.8605]
[1747569954164,118.86,170.62,170.41,28.51517354]
[1747569954369,118.86,170.62,170.48,5.6584]
[1747569954572,5.8611,170.56,170.52,5.8622]
[1747569954872,118.82,170.57,170.48,5.6584]
[1747569955168,5.8618,170.54,170.51,5.8628]
[1747569955370,118.82,170.57,170.48,5.6584]
[1747569955771,118.82,170.57,170.51,5.8625]
[1747569956270,118.82,170.57,170.48,5.6584]
[1747569956866,5.8623,170.53,170.49,5.8634]
[1747569957874,5.8619,170.54,170.48,5.6584]
[1747569958262,5.8621,170.53,170.5,5.8629]
[1747569958466,5.8621,170.53,170.48,5.6584]
[1747569958768,59.2,170.56,170.48,5.6584]
[1747569959174,5.8619,170.54,170.5,5.8631]
[1747569959377,59.2,170.56,170.48,5.6584]
[1747569961475,5.8629,170.51,170.48,5.6584]
[1747569961666,59.2,170.56,170.47,5.8639]
[1747569961869,59.2,170.56,170.45,59.22]
[1747569962173,59.2,170.56,170.42,118.46]
[1747569962574,5.8633,170.5,170.46,5.8643]
[1747569962775,118.46,170.52,170.46,5.8643]
[1747569962973,118.46,170.52,170.42,118.46]
[1747569963173,5.8639,170.48,170.42,118.46]
[1747569963375,118.46,170.52,170.42,118.46]
[1747569963570,5.8642,170.47,170.43,5.8653]
[1747569963881,118.46,170.52,170.42,59.22]
[1747569964268,349.4009,170.58,170.41,120.6104]
[1747569964469,118.64,170.57,170.42,3.862]